bitfinex/quotes_ETHUSD_20240707
["timestamp","ask_amount","ask_price","bid_price","bid_amount"]
[1720395689079,0.44652832,2939.9,2939.5,0.60942838]
[1720395689387,0.62055891,2939.9,2939.5,0.60942838]
[1720395689542,0.44652832,2939.8,2939.5,0.60942838]
[1720395691115,0.62055891,2939.8,2939.5,0.60942838]
[1720395691435,0.17403059,2939.8,2939.5,0.60942838]
[1720395691582,0.44652153,2939.7,2939.5,0.60942838]
[1720395692078,0.44654615,2939.6,2939.5,0.60942838]
[1720395692282,0.17403059,2940.0,2939.5,0.60942838]
[1720395692283,0.44654615,2939.9,2939.5,0.60942838]
[1720395692520,0.17403059,2940.0,2939.5,0.05942838]
[1720395692521,2.87034615,2939.8,2939.5,0.05942838]
[1720395692697,0.62057674,2939.7,2939.0,4.68938225]
[1720395693037,0.62057674,2939.7,2939.1,0.0594919]
[1720395693038,0.44654615,2939.6,2939.1,0.0594919]
[1720395693886,0.44654615,2939.5,2939.1,0.0594919]
[1720395694087,0.44654615,2939.4,2939.2,0.55]
[1720395694320,0.44654615,2939.3,2939.2,0.55]
[1720395694518,0.44654615,2939.3,2939.0,4.68938225]
[1720395694724,2.65855151,2939.7,2939.1,0.068045]
[1720395694884,0.62041167,2939.6,2939.0,4.68938225]
[1720395695084,0.44638108,2939.5,2939.0,4.68938225]
[1720395695398,0.44638108,2939.4,2939.0,4.68938225]
[1720395695710,0.44638108,2939.3,2939.0,4.68938225]
[1720395696029,0.44638108,2939.2,2939.1,0.55]
[1720395696207,0.44638108,2939.6,2939.1,0.55]
[1720395696723,0.62041167,2939.6,2939.1,0.55]
[1720395696881,0.44638108,2939.5,2939.1,0.55]
[1720395697898,0.44645497,2939.4,2939.1,0.55]
[1720395698214,2.48546073,2940.0,2939.1,0.55]
[1720395698215,0.44645497,2939.3,2939.2,0.52393823]
[1720395698395,0.44645497,2939.8,2939.2,1.07393823]
[1720395698586,0.44645497,2939.8,2939.4,2.3966]
[1720395698783,0.44645497,2939.8,2939.5,0.06802779]
[1720395698980,0.44645497,2939.7,2939.6,0.79646278]
[1720395699185,2.48546073,2940.5,2939.6,0.79646278]
[1720395699186,0.44645497,2940.2,2939.6,0.79646278]
[1720395699416,0.44645497,2940.1,2939.6,0.55]
[1720395699635,0.44645497,2940.0,2939.5,0.55]
[1720395699933,0.44645497,2939.9,2939.6,0.05943326]
[1720395700103,0.44645497,2939.8,2939.7,0.55]
[1720395700610,0.44645497,2939.8,2939.7,0.05943326]
[1720395700791,0.44645497,2940.1,2939.7,0.60943326]
[1720395701123,0.17403059,2940.4,2939.8,0.60943326]
[1720395701290,0.44658605,2940.3,2939.8,0.55]
[1720395701486,0.17403059,2940.3,2939.8,0.55]
[1720395701712,0.44670964,2940.2,2939.9,0.05943326]
[1720395701887,0.44670964,2940.1,2940.0,0.55]
[1720395702088,0.44671378,2940.4,2940.1,2.4361]
[1720395702288,0.44670677,2940.3,2940.2,0.61801291]
[1720395702519,0.44670677,2940.3,2940.2,0.67709928]
[1720395702722,0.4467011,2940.9,2940.2,0.67709928]
[1720395703027,0.73703427,2940.9,2940.3,0.06800916]
[1720395703252,0.62073169,2940.8,2940.4,0.55]
[1720395703437,0.4467011,2940.7,2940.5,0.06800856]
[1720395703750,0.4467011,2940.7,2940.6,0.55]
[1720395704259,0.4467011,2941.1,2940.6,0.61026652]
[1720395704551,0.44672422,2941.0,2940.8,4.5893]
[1720395704758,2.35895385,2941.3,2940.9,0.55]
[1720395704919,0.44662015,2941.2,2940.9,0.55]
[1720395705121,0.44662015,2941.2,2941.0,0.05908637]
[1720395705350,0.44662015,2941.2,2941.1,0.55]
[1720395705520,2.35895385,2941.3,2941.1,0.55]
[1720395705716,2.35895385,2941.3,2941.2,0.05908637]
[1720395705961,2.80555919,2941.3,2941.2,0.55]
[1720395706120,2.80555919,2941.3,2941.2,0.60908637]
[1720395706121,2.35895385,2941.3,2941.2,0.60908637]
[1720395708724,2.4276,2942.3,2941.2,0.60908637]
[1720395708929,0.8651572,2942.2,2941.3,0.59940845]
[1720395709141,0.44659744,2942.1,2941.4,0.05829543]
[1720395709489,0.44659744,2942.1,2941.5,0.59940509]
[1720395709767,0.44659744,2942.1,2941.6,0.05828079]
[1720395709923,3.0,2942.5,2941.7,0.55]
[1720395709924,0.44659744,2942.0,2941.7,0.55]
[1720395710116,0.17578504,2942.4,2941.8,0.1081738]
[1720395710322,0.44644176,2942.3,2941.9,0.55]
[1720395710518,3.0,2942.5,2942.0,0.058232]
[1720395710730,2.3734,2942.6,2942.1,0.55]
[1720395710930,0.62200782,2942.5,2942.1,0.55]
[1720395711157,0.4463859,2942.4,2942.1,0.55]
[1720395711359,3.0,2942.5,2942.1,0.55]
[1720395711576,0.44639076,2942.4,2942.1,0.55]
[1720395712242,3.0,2942.5,2942.1,0.55]
[1720395712439,0.44627942,2942.4,2942.1,0.55]
[1720395712641,3.0,2942.5,2942.1,0.55]
[1720395712852,2.2599,2943.0,2942.2,0.058232]
[1720395713174,2.2599,2943.7,2942.3,0.55]
[1720395713396,0.6223302,2943.6,2942.3,2.96666942]
[1720395713599,0.7344877,2943.5,2942.3,2.96666942]
[1720395713762,0.44626468,2943.4,2942.3,2.94693123]
[1720395714153,0.28822302,2943.5,2942.3,2.94693123]
[1720395717089,0.28822302,2943.5,2942.4,2.332]
[1720395717288,2.71984214,2944.1,2942.5,0.55]
[1720395717497,2.3718,2944.1,2942.5,0.55]
[1720395717656,2.3718,2944.1,2942.6,0.05723123]
[1720395717856,2.3718,2944.1,2942.7,0.55]
[1720395718053,0.23718,2944.0,2942.7,0.55]
[1720395718354,0.23718,2944.0,2942.8,0.05723123]
[1720395718554,0.23718,2944.0,2942.9,0.55]
[1720395718555,3.23718,2944.0,2942.9,0.55]
[1720395718756,0.29967797,2944.0,2942.9,0.55]
[1720395718957,3.29967797,2944.0,2942.9,0.55]
[1720395719182,3.06249797,2944.0,2942.9,0.55]
[1720395719379,0.06249797,2944.0,2942.9,0.55]
[1720395719793,2.4603,2943.9,2942.1,2.332]
[1720395720255,2.332,2943.6,2942.2,0.05723123]
[1720395720461,2.6365892,2943.5,2941.9,4.68938225]
[1720395720701,3.44652396,2943.4,2942.3,0.05247657]
[1720395721006,3.0,2943.4,2942.0,2.4352]
[1720395721313,2.4603,2943.5,2942.1,0.02047606]
[1720395721517,2.4603,2943.5,2942.1,0.05270576]
[1720395721862,2.4603,2943.5,2942.1,2.38470576]
[1720395722162,2.4603,2943.5,2942.2,0.57385367]
[1720395722373,2.4603,2943.5,2942.3,0.05267162]
[1720395722665,0.24603,2943.4,2942.4,0.55]
[1720395723288,0.24603,2943.4,2942.5,0.08468853]
[1720395723490,0.24603,2943.4,2942.6,0.55]
[1720395723964,0.24603,2943.4,2942.7,0.05253508]
[1720395725408,0.24603,2943.4,2942.6,0.55]
[1720395725561,0.270633,2943.3,2942.6,0.55]
[1720395725757,0.270633,2943.3,2942.7,0.0525107]
[1720395729106,0.270633,2943.3,2942.7,0.12047132]
[1720395729414,3.0,2943.6,2942.8,3.0347]
[1720395729799,3.0,2943.6,2942.8,3.08722533]
[1720395730195,3.0,2943.6,2942.8,0.60252533]
[1720395730399,3.0,2943.6,2942.8,0.05252533]
[1720395730714,3.0,2943.6,2942.4,2.4822]
[1720395730913,3.0,2943.6,2942.5,0.55]
[1720395731077,3.0,2943.6,2942.5,0.60252533]
[1720395732970,2.3759,2943.5,2942.5,0.05252533]
[1720395733406,2.02,2943.1,2942.6,0.04894953]
[1720395733617,2.02,2943.1,2941.9,4.68938225]
[1720395733915,0.202,2943.0,2942.7,0.04894953]
[1720395734117,0.202,2943.0,2941.8,7.08538225]
[1720395734292,0.202,2943.0,2941.8,2.396]
[1720395734614,0.202,2943.0,2941.9,0.59894953]
[1720395734784,0.202,2943.0,2942.0,0.06797587]
[1720395734989,2.02,2943.1,2942.1,0.66711997]
[1720395735314,2.02,2943.1,2942.1,0.59914898]
[1720395735617,2.02,2943.1,2942.2,0.06796223]
[1720395735825,2.02,2943.1,2942.3,0.55]
[1720395736119,2.02,2943.1,2942.4,0.06796218]
[1720395736271,2.02,2943.1,2942.5,0.55]
[1720395736708,2.02,2943.1,2942.6,0.04898358]
[1720395737012,2.02,2943.1,2942.7,0.55]
[1720395737594,2.02,2943.1,2942.8,0.04893007]
[1720395737788,2.02,2943.1,2942.9,0.55]
[1720395737789,2.222,2943.1,2942.9,0.55]
[1720395738181,2.222,2943.1,2943.0,0.04893007]
[1720395738384,2.222,2943.1,2942.9,0.55]
[1720395738619,3.0,2943.7,2942.9,0.55]
[1720395738825,3.39,2943.4,2943.0,0.04893007]
[1720395738983,3.33576327,2943.8,2943.0,0.04893007]
[1720395738984,3.0,2943.8,2943.0,0.04893007]
[1720395739184,5.4601,2943.9,2943.0,0.04893007]
[1720395740283,5.79459209,2943.9,2943.0,0.04893007]
[1720395741007,0.23909343,2943.8,2942.5,4.68938225]
[1720395741236,0.50873085,2943.7,2942.6,0.55]
[1720395741546,0.06245722,2943.7,2942.6,0.55]
[1720395741703,0.06245722,2943.7,2942.7,0.04889116]
[1720395742046,0.06245722,2943.7,2942.8,0.55]
[1720395742646,0.06245722,2943.7,2942.9,0.04889116]
[1720395742816,0.06245722,2943.7,2942.6,0.55]
[1720395743018,0.30624572,2943.6,2943.0,0.04889116]
[1720395743355,0.30624572,2943.6,2942.6,0.55]
[1720395743637,0.44627631,2943.5,2942.6,0.55]
[1720395743800,0.44627631,2943.5,2942.7,0.04889116]
[1720395744000,0.62296256,2943.5,2942.8,0.55]
[1720395744243,0.44625843,2943.4,2942.8,0.55]
[1720395744565,0.44625843,2943.4,2942.9,0.04889116]
[1720395744714,0.17668625,2943.5,2942.9,0.04889116]
[1720395744918,0.17668625,2943.5,2942.6,0.55]
[1720395745303,0.06245722,2943.7,2942.7,0.04889116]
[1720395745304,0.44619657,2943.4,2942.7,0.04889116]
[1720395745617,0.23914347,2943.7,2942.8,0.55]
[1720395745816,0.4462021,2943.6,2942.8,0.55]
[1720395746135,0.4462021,2943.6,2942.8,0.59726146]
[1720395746446,0.4462021,2943.6,2942.8,2.91266146]
[1720395746817,0.06245722,2943.7,2942.8,2.91266146]
[1720395747015,0.44620506,2943.6,2942.9,0.01807139]
[1720395747244,0.44620506,2943.6,2943.0,0.34022772]
[1720395747457,0.44620506,2943.6,2943.1,0.55]
[1720395747672,0.44620506,2943.6,2943.1,0.59706204]
[1720395748447,2.3403,2943.6,2943.1,0.04706204]
[1720395748629,0.86305602,2943.5,2942.5,4.68938225]
[1720395748957,0.44609405,2943.4,2943.2,0.04696966]
[1720395749157,0.41696197,2943.5,2942.5,4.68938225]
[1720395749158,0.44609089,2943.3,2942.5,4.68938225]
[1720395749359,0.44609089,2943.2,2942.3,2.4346]
[1720395749533,0.41696197,2943.5,2942.1,4.68938225]
[1720395749534,0.44609089,2943.1,2942.6,0.04712526]
[1720395749727,0.44609089,2943.0,2942.1,4.68938225]
[1720395749932,0.44609089,2942.9,2942.7,0.04395969]
[1720395750154,0.44609089,2942.8,2942.1,4.68938225]
[1720395750356,0.17668625,2943.4,2942.8,0.04395969]
[1720395750560,2.02,2943.2,2942.1,4.68938225]
[1720395750893,2.332,2942.9,2942.2,0.04395969]
[1720395751069,2.4056,2943.0,2941.2,4.68938225]
[1720395751070,2.332,2942.5,2941.2,4.68938225]
[1720395751275,2.4056,2942.2,2940.8,4.68938225]
[1720395751444,0.62285384,2942.1,2940.6,2.3585]
[1720395751645,3.39,2941.9,2940.4,4.68938225]
[1720395751847,2.65904898,2941.8,2940.4,4.68938225]
[1720395752065,3.17668625,2941.7,2940.4,4.68938225]
[1720395752246,2.4056,2941.5,2940.4,4.68938225]
[1720395752445,0.17668625,2941.4,2940.0,7.04788225]
[1720395752662,2.02,2941.3,2939.6,4.68938225]
[1720395752832,0.17668625,2941.2,2939.5,2.3585]
[1720395753030,0.06245722,2941.1,2939.5,2.3585]
[1720395753231,0.28837157,2941.1,2939.6,0.23585]
[1720395753540,0.28837157,2941.1,2939.6,0.27556652]
[1720395753948,0.28837157,2941.1,2939.6,0.23585]
[1720395754977,0.28837157,2941.1,2939.7,0.58971652]
[1720395755490,0.28837157,2941.1,2939.8,0.04098695]
[1720395756498,1.49195683,2941.1,2939.8,0.04098695]
[1720395756649,0.17240046,2941.0,2939.8,0.04098695]
[1720395757304,2.4771,2940.9,2939.8,0.04098695]
[1720395757589,0.17240046,2940.8,2939.8,0.04098695]
[1720395757795,3.23489843,2940.8,2939.8,0.04098695]
[1720395757966,0.23489843,2940.7,2939.3,0.04960257]
[1720395758167,0.23489843,2940.7,2939.9,0.04075788]
[1720395758358,0.23489843,2940.7,2939.5,4.68938225]
[1720395758757,0.23489843,2940.7,2939.6,0.04075788]
[1720395758969,0.23489843,2940.7,2939.6,0.59075788]
[1720395759176,0.06249797,2940.7,2939.6,0.59075788]
[1720395760053,0.06249797,2940.7,2939.6,0.65878574]
[1720395762180,0.06249797,2940.7,2939.7,0.06802214]
[1720395762372,0.06249797,2940.7,2939.8,0.55]
[1720395762783,0.06249797,2940.7,2939.9,0.04075788]
[1720395763307,0.06249797,2940.7,2939.2,4.68938225]
[1720395763466,0.06249797,2940.7,2939.1,0.3415]
[1720395763467,0.06249797,2940.7,2940.0,0.04075788]
[1720395763674,0.06249797,2940.7,2939.4,4.68938225]
[1720395763868,0.06249797,2940.7,2940.1,0.04075788]
[1720395764302,0.06249797,2940.7,2939.4,4.68938225]
[1720395764568,0.3062498,2940.6,2940.2,0.04075788]
[1720395764775,0.3062498,2940.6,2939.5,0.55]
[1720395765203,0.3062498,2940.6,2939.6,0.04075788]
[1720395765379,2.02,2940.2,2939.6,0.04075788]
[1720395765712,2.3915,2940.0,2938.8,4.68938225]
[1720395766007,2.3915,2940.0,2938.4,6.96208225]
[1720395766211,2.3915,2940.0,2938.9,0.03712937]
[1720395766570,2.3915,2940.0,2938.5,0.3415]
[1720395766571,2.3915,2940.0,2938.5,3.3415]
[1720395766876,2.02,2940.2,2938.6,1.34145823]
[1720395767075,2.02,2940.2,2938.6,1.3785876]
[1720395767490,2.02,2940.2,2938.7,0.55]
[1720395768170,2.02,2940.2,2938.8,0.03712937]
[1720395772913,2.02,2940.2,2938.8,0.10516547]
[1720395773222,2.02,2940.2,2938.9,0.55]
[1720395773526,2.02,2940.2,2939.0,0.09831951]
[1720395773938,2.02,2940.2,2939.1,0.55]
[1720395774248,2.02,2940.2,2939.2,0.06803147]
[1720395774545,0.06249797,2940.7,2939.3,0.61796571]
[1720395774687,0.06249797,2940.7,2939.5,2.333]
[1720395774887,0.06249797,2940.7,2939.6,0.85132147]
[1720395775115,0.06249797,2940.7,2939.6,0.7833]
[1720395775440,0.06249797,2940.7,2939.6,0.55]
[1720395783920,0.06249797,2940.7,2939.7,2.4915]
[1720395784114,0.06249797,2940.7,2939.8,0.61801734]
[1720395784865,0.06249797,2940.7,2939.8,0.55]
[1720395785036,2.54869797,2940.7,2939.8,0.55]
[1720395785233,0.2548698,2940.6,2939.8,0.55]
[1720395786371,0.06249797,2940.7,2939.8,0.55]
[1720395788042,2.263,2940.6,2939.0,2.4103]
[1720395788637,0.06249797,2940.5,2939.0,2.4103]
[1720395790028,0.06249797,2940.5,2939.3,0.55]
[1720395790232,0.2325498,2940.4,2939.4,0.52393823]
[1720395790446,0.2325498,2940.4,2939.5,0.55]
[1720395791482,0.40484176,2940.4,2939.3,0.55]
[1720395791640,0.17229196,2940.4,2939.3,0.55]
[1720395791989,0.17229196,2940.4,2939.1,0.55]
[1720395792181,0.23478993,2940.5,2939.1,0.55]
[1720395797359,0.17229196,2940.4,2939.1,0.55]
[1720395797558,0.06249797,2940.5,2939.1,0.55]
[1720395797559,0.17229196,2940.3,2939.1,0.55]
[1720395797771,0.17229196,2940.4,2939.1,1.34911823]
[1720395798087,0.17229196,2940.3,2939.1,1.34911823]
[1720395798395,0.17229196,2940.2,2939.1,1.34911823]
[1720395798549,3.0,2940.4,2939.1,1.34911823]
[1720395798550,0.17229196,2940.3,2939.1,1.34911823]
[1720395798892,0.17229196,2940.3,2939.0,2.7518]
[1720395798893,2.4399,2940.1,2939.0,2.4103]
[1720395799059,0.17229196,2940.0,2938.7,2.3229]
[1720395799244,0.17229196,2939.9,2938.3,7.01228225]
[1720395799450,5.4399,2940.1,2938.3,2.3229]
[1720395799451,0.17229196,2939.8,2938.3,2.3229]
[1720395799652,0.17229196,2939.7,2938.4,0.06805047]
[1720395799963,0.17229196,2939.9,2938.3,4.6559]
[1720395800271,0.17229196,2939.8,2938.3,4.6559]
[1720395800680,0.17229196,2939.9,2938.3,4.6559]
[1720395800897,2.4399,2939.7,2938.3,4.6559]
[1720395801191,0.43351116,2939.6,2938.4,0.46559]
[1720395801484,0.43351116,2939.6,2938.3,2.3229]
[1720395801647,3.43351116,2939.6,2938.3,2.3229]
[1720395801852,0.17229196,2939.5,2938.4,0.55]
[1720395802747,0.17229196,2939.5,2938.7,2.3229]
[1720395802944,0.17229196,2940.0,2939.0,2.333]
[1720395803157,0.17229196,2940.0,2939.1,0.7833]
[1720395803382,0.17229196,2940.0,2939.1,0.55]
[1720395803763,2.65527181,2940.0,2939.1,0.55]
[1720395804089,2.71776978,2939.9,2938.6,4.68938225]
[1720395804296,4.92457985,2939.7,2938.7,0.55]
[1720395804584,3.17229196,2939.6,2938.7,0.55]
[1720395804751,0.17229196,2939.5,2938.7,0.55]
[1720395805406,0.17229196,2939.5,2938.6,4.68938225]
[1720395806562,0.17229196,2939.5,2938.2,7.02238225]
[1720395806767,0.17229196,2939.5,2938.3,0.55]
[1720395806969,0.17229196,2939.5,2938.4,0.2883]
[1720395807171,0.17229196,2939.5,2938.5,0.55]
[1720395808266,2.65329459,2939.5,2938.5,0.55]
[1720395808566,5.65329459,2939.4,2938.5,0.55]
[1720395808802,2.65329459,2939.3,2938.5,0.55]
[1720395809010,0.17229196,2939.2,2938.5,0.55]
[1720395809195,0.17229196,2939.3,2938.5,0.55]
[1720395809390,2.65329459,2939.3,2938.5,0.55]
[1720395809579,0.17229196,2939.2,2938.5,0.55]
[1720395809794,0.26532946,2939.1,2938.5,0.55]
[1720395810318,0.17229196,2939.1,2938.5,0.55]
[1720395810493,0.17229196,2939.2,2938.5,0.55]
[1720395811312,2.4349,2939.1,2938.1,4.68938225]
[1720395812434,3.09808347,2939.0,2938.1,4.68938225]
[1720395812637,3.618585,2938.9,2938.1,4.68938225]
[1720395812919,0.61861008,2938.8,2937.7,4.68938225]
[1720395813221,0.44631812,2938.7,2937.7,4.68938225]
[1720395813390,0.44631812,2938.7,2937.8,0.55]
[1720395813596,0.17229196,2938.9,2937.8,0.55]
[1720395813597,0.44631812,2938.6,2937.8,0.55]
[1720395813796,0.44631812,2938.5,2937.8,1.30555823]
[1720395813994,0.44631812,2938.4,2937.8,1.30555823]
[1720395814183,0.44631812,2938.3,2937.8,1.30555823]
[1720395814383,0.44628904,2938.2,2937.9,0.02992246]
[1720395814591,0.17229196,2938.9,2937.9,0.02992246]
[1720395814788,0.44626067,2938.8,2937.9,0.02992246]
[1720395815136,0.44626067,2938.8,2937.7,0.55]
[1720395815432,0.44626067,2938.8,2938.0,0.03047348]
[1720395815631,0.44626067,2938.8,2937.9,0.55]
[1720395815805,0.44626067,2938.8,2938.1,0.03047348]
[1720395816005,0.44626067,2938.8,2937.7,0.55]
[1720395816222,0.44626067,2938.8,2938.2,0.03047348]
[1720395816537,0.44626067,2938.8,2938.3,0.03047348]
[1720395816700,0.44626067,2938.8,2937.8,2.333]
[1720395816892,0.44626067,2938.8,2938.4,0.03047348]
[1720395817091,0.44626067,2938.8,2937.9,0.1680634]
[1720395817329,0.44626067,2938.8,2938.5,0.03047348]
[1720395817535,0.44626884,2938.7,2938.1,4.68938225]
[1720395817831,0.44626884,2938.6,2938.1,4.68938225]
[1720395818029,0.44626884,2938.5,2938.1,4.68938225]
[1720395818194,0.44626884,2938.4,2938.1,4.68938225]
[1720395818394,0.17229196,2938.9,2938.1,4.68938225]
[1720395818595,0.44638084,2938.8,2938.1,4.68938225]
[1720395819392,2.3163,2938.7,2938.1,4.68938225]
[1720395819606,0.6186728,2938.6,2938.1,4.68938225]
[1720395819800,0.44638084,2938.5,2938.1,4.68938225]
[1720395820594,0.17229196,2938.6,2938.1,4.68938225]
[1720395820894,0.44646532,2938.5,2938.1,4.68938225]
[1720395821094,0.17229196,2938.6,2938.1,4.68938225]
[1720395821290,0.17229196,2938.6,2937.7,11.51983964]
[1720395821291,0.44640551,2938.5,2937.7,4.68938225]
[1720395821537,0.44640551,2938.5,2937.8,0.55]
[1720395821724,0.44640551,2938.5,2937.6,0.55]
[1720395822640,0.44640551,2938.5,2937.3,4.68938225]
[1720395822839,2.3163,2938.4,2937.3,4.68938225]
[1720395823083,0.89496802,2938.3,2937.3,4.68938225]
[1720395823264,0.44640551,2938.2,2937.3,4.68938225]
[1720395823604,0.44642671,2938.1,2937.4,2.3989]
[1720395823881,3.0,2938.4,2937.4,2.3989]
[1720395823882,0.17223666,2938.3,2937.4,2.3989]
[1720395824088,0.17223666,2938.4,2937.5,2.40106948]
[1720395824239,2.3163,2938.6,2937.6,0.47999695]
[1720395824440,0.44636045,2938.5,2937.7,0.61806484]
[1720395824641,0.44636045,2938.5,2937.8,0.06806649]
[1720395824840,0.44636045,2938.5,2937.9,0.55]
[1720395825157,0.44636045,2938.5,2937.7,0.55]
[1720395825485,2.3771,2938.3,2936.9,11.51983964]
[1720395825782,0.61856887,2938.2,2936.9,11.51983964]
[1720395825944,0.44636045,2938.1,2936.9,11.51983964]
[1720395826978,0.44636045,2938.1,2937.4,0.55]
[1720395827164,0.44649941,2938.0,2937.4,0.55]
[1720395827351,0.44649941,2937.9,2937.4,0.55]
[1720395827558,0.17220842,2938.2,2937.4,0.55]
[1720395827876,0.44650802,2938.1,2937.4,0.55]
[1720395828439,0.44650802,2938.1,2937.2,0.55]
[1720395829543,0.44650802,2938.1,2937.1,0.55]
[1720395830289,0.17220842,2938.2,2937.1,0.55]
[1720395830468,0.44654052,2938.1,2937.1,0.55]
[1720395830672,0.44654052,2938.1,2937.1,2.26007219]
[1720395830860,0.44654027,2938.0,2937.1,2.26007219]
[1720395831054,0.44654027,2937.9,2937.1,2.26007219]
[1720395831256,0.17220842,2938.2,2937.1,2.26007219]
[1720395831567,0.44656949,2938.1,2937.1,0.55]
[1720395833464,0.17225502,2938.2,2937.0,0.55]
[1720395833794,0.44652751,2938.1,2937.0,0.55]
[1720395835615,0.44652751,2938.1,2937.1,2.34808262]
[1720395835905,0.44652751,2938.1,2937.2,0.55]
[1720395836696,0.4465959,2938.0,2937.2,0.55]
[1720395836892,0.4465959,2937.9,2937.2,0.55]
[1720395837111,0.4465959,2937.8,2937.2,0.55]
[1720395837407,0.4465959,2937.7,2937.2,0.55]
[1720395837618,0.17225502,2938.2,2937.2,0.55]
[1720395837781,0.44663651,2938.1,2937.2,0.55]
[1720395838526,0.44663651,2938.1,2936.8,0.1086129]
[1720395838808,2.4559,2938.0,2936.8,0.1086129]
[1720395839015,0.61889153,2937.9,2936.8,0.1086129]
[1720395839305,0.44663651,2937.8,2936.8,0.1086129]
[1720395839508,0.61889153,2937.8,2936.8,0.1086129]
[1720395839714,0.44663651,2937.7,2936.8,0.1086129]
[1720395839869,0.17225502,2937.8,2936.8,0.1086129]
[1720395840073,0.44669249,2937.7,2936.9,0.55]
[1720395840905,0.44669249,2937.7,2937.0,0.06808571]
[1720395841146,0.44669249,2937.7,2937.1,0.55]
[1720395841274,0.44669249,2937.7,2937.2,2.34808107]
[1720395841473,0.17225502,2937.8,2937.3,0.55]
[1720395841672,0.44651022,2937.7,2937.3,0.55]
[1720395841873,0.17225502,2938.3,2937.3,0.55]
[1720395842110,0.4464895,2938.2,2937.3,0.55]
[1720395842421,0.17225502,2938.3,2937.3,0.55]
[1720395842422,0.4465371,2938.1,2937.3,0.55]
[1720395842572,0.4465371,2938.0,2937.3,0.55]
[1720395842771,0.4465371,2937.9,2937.3,0.55]
[1720395842977,0.4465371,2937.8,2937.3,0.85914656]
[1720395843303,0.17225502,2938.3,2937.4,0.06807743]
[1720395843506,0.44657664,2938.2,2937.5,0.55]
[1720395843707,0.61883166,2938.2,2937.5,0.55]
[1720395843881,12.44,2939.7,2937.6,2.3528]
[1720395843882,0.44657664,2938.1,2937.6,2.3528]
[1720395844080,0.17225502,2938.7,2937.7,0.84028]
[1720395844313,0.44661936,2938.6,2937.7,0.55]
[1720395845030,0.44661936,2938.6,2937.8,0.06807441]
[1720395845202,0.44661936,2938.6,2937.9,0.55]
[1720395845399,0.61887438,2938.6,2937.7,0.55]
[1720395845629,0.44661936,2938.5,2937.7,0.55]
[1720395846026,0.44661936,2938.5,2937.8,0.06806935]
[1720395846225,0.44661936,2938.5,2937.9,0.55]
[1720395846595,0.44661936,2938.5,2937.7,0.55]
[1720395848216,0.44661936,2938.5,2937.6,0.55]
[1720395848505,0.44661936,2938.5,2937.6,0.8383]
[1720395848716,0.44649297,2938.4,2937.7,0.04522227]
[1720395849031,0.17225502,2938.6,2937.7,2.2919]
[1720395849334,0.44647559,2938.5,2937.8,0.55]
[1720395849509,0.44647559,2938.4,2937.8,0.55]
[1720395849687,3.0,2939.0,2937.8,0.55]
[1720395849688,0.44647559,2938.3,2937.8,0.55]
[1720395849892,0.44647559,2938.2,2937.8,0.55]
[1720395850198,0.44646766,2938.1,2937.8,0.55]
[1720395850390,0.44646766,2938.0,2937.8,0.55]
[1720395850595,0.44646766,2937.9,2937.6,0.55]
[1720395850903,0.44646766,2937.8,2937.6,0.55]
[1720395851106,0.17225502,2938.6,2937.6,0.55]
[1720395851310,0.7118496,2938.5,2937.6,0.55]
[1720395851498,0.4464583,2938.4,2937.6,0.55]
[1720395851833,0.43764632,2938.5,2937.6,0.55]
[1720395852008,5.4514,2939.0,2937.6,0.55]
[1720395852009,0.44648103,2938.4,2937.6,0.55]
[1720395852208,0.44648103,2938.3,2937.6,0.55]
[1720395852513,5.4514,2939.0,2937.6,0.55]
[1720395852514,0.44648103,2938.2,2937.6,0.55]
[1720395852706,8.38346173,2939.0,2937.6,0.55]
[1720395852707,0.44648103,2938.1,2937.6,0.55]
[1720395852903,0.44648103,2938.0,2937.6,1.06749]
[1720395853098,0.44648103,2937.9,2937.6,1.06749]
[1720395853295,0.44648103,2937.8,2937.7,0.0357735]
[1720395853518,0.44648103,2937.8,2937.6,1.06749]
[1720395853734,1.4287968,2938.7,2937.6,1.06749]
[1720395853896,0.61877269,2938.6,2937.6,1.06749]
[1720395854096,0.44651767,2938.5,2937.6,1.06749]
[1720395854533,0.17225502,2938.6,2937.6,1.06749]
[1720395854937,0.17225502,2938.8,2937.6,1.06749]
[1720395855137,0.44649507,2938.5,2937.6,1.06749]
[1720395855498,0.17225502,2938.7,2937.6,1.06749]
[1720395855702,0.17225502,2938.8,2937.6,1.06749]
[1720395856342,0.4464005,2938.7,2937.6,1.06749]
[1720395857543,0.17225502,2938.8,2937.6,1.06749]
[1720395857843,2.48444539,2938.7,2937.6,1.06749]
[1720395858000,1.87495254,2938.6,2938.0,2.333]
[1720395858201,0.17225502,2938.5,2938.2,2.3899]
[1720395858401,0.17225502,2938.9,2938.2,2.3899]
[1720395858602,2.3257,2938.8,2937.7,2.3899]
[1720395858826,0.67049506,2938.7,2937.8,0.55]
[1720395859017,0.49824004,2938.7,2937.8,0.55]
[1720395859451,0.67049506,2938.7,2937.8,0.55]
[1720395859602,0.17225502,2938.7,2937.8,0.55]
[1720395860230,0.17225502,2938.8,2937.8,0.55]
[1720395860633,2.65670041,2938.8,2937.8,0.55]
[1720395860831,0.17225502,2938.7,2937.8,0.55]
[1720395861275,2.3237,2938.6,2937.6,5.03088225]
[1720395861477,0.42185052,2938.5,2937.6,4.68938225]
[1720395862678,2.90542885,2938.5,2937.6,4.68938225]
[1720395862846,2.65583335,2938.4,2937.7,0.55]
[1720395863047,0.17225502,2938.3,2937.7,0.55]
[1720395863359,0.26558333,2938.2,2937.7,0.55]
[1720395863535,0.43783835,2938.2,2937.7,0.55]
[1720395864034,2.4129,2938.1,2937.3,4.68938225]
[1720395864375,2.4129,2938.1,2936.9,4.68938225]
[1720395864376,2.65583335,2938.0,2936.9,4.68938225]
[1720395864576,2.65583335,2937.9,2936.9,4.68938225]
[1720395864773,3.19931023,2938.2,2936.8,2.3753129]
[1720395864774,0.17225502,2937.8,2937.4,2.333]
[1720395864979,0.17225502,2938.1,2937.4,2.333]
[1720395865134,3.17225502,2938.3,2937.4,2.333]
[1720395865329,0.17225502,2938.2,2937.5,0.06807267]